bitfinex-derivatives/quotes_ETHF0:USTF0_20251204
["timestamp","ask_amount","ask_price","bid_price","bid_amount"]
[1764889450530,0.4616,3143.5,3142.2,1.63749]
[1764889450746,1.4697,3142.3,3142.2,1.63749]
[1764889451328,1.4697,3142.3,3142.2,0.15909]
[1764889451532,1.473152,3142.3,3142.2,0.15909]
[1764889456533,1.2232,3143.0,3142.9,0.7519]
[1764889456836,0.7627,3143.0,3142.9,1.4784]
[1764889457034,0.7627,3142.9,3142.8,1.63746]
[1764889457227,1.4697,3142.9,3142.8,1.63746]
[1764889457631,1.47374316,3142.9,3142.8,1.64082415]
[1764889458938,1.47374316,3142.9,3142.8,0.16242415]
[1764889459238,1.47374316,3142.9,3142.8,1.64082415]
[1764889459631,0.00404316,3142.9,3142.8,1.64082415]
[1764889459830,0.15899,3144.3,3142.8,1.64082415]
[1764889459831,1.9313,3143.5,3143.4,0.7519]
[1764889460034,1.4697,3143.1,3143.0,1.63745]
[1764889460627,1.4697,3143.1,3142.8,0.00336415]
[1764889460628,1.4697,3142.9,3142.8,0.00336415]
[1764889460829,1.47260581,3142.9,3142.8,0.00336415]
[1764889464342,0.7627,3142.1,3142.0,2.077]
[1764889464542,1.4697,3142.1,3142.0,2.077]
[1764889464732,1.4697,3142.1,3142.0,1.6375]
[1764889465338,0.7627,3142.1,3142.0,2.07951846]
[1764889467939,0.4616,3142.5,3142.4,0.7519]
[1764889467940,1.9313,3142.5,3142.4,0.7519]
[1764889468638,1.9313,3142.5,3142.0,0.60111846]
[1764889469144,1.9313,3142.5,3142.4,0.7519]
[1764889470145,1.47260581,3142.9,3142.8,1.4784]
[1764889470843,1.47260581,3142.9,3142.8,0.7519]
[1764889471239,0.76560581,3142.9,3142.8,1.4784]
[1764889471440,0.00290581,3142.9,3142.8,1.4784]
[1764889472148,0.00290581,3142.9,3142.8,1.63746]
[1764889472343,1.47260581,3142.9,3142.8,0.15906]
[1764889472539,1.47260581,3142.9,3142.0,0.44201846]
[1764889473247,1.4697,3142.4,3142.3,1.63748]
[1764889473745,0.7627,3142.4,3142.3,1.63748]
[1764889474743,1.4697,3142.4,3142.3,1.63748]
[1764889474948,1.4697,3142.4,3142.3,0.15908]
[1764889475142,1.4697,3142.4,3142.3,0.93018]
[1764889475447,1.4697,3142.4,3142.3,1.67418]
[1764889475749,1.4697,3142.4,3142.3,0.15908]
[1764889476342,1.5555,3142.1,3142.0,0.00251846]
[1764889476744,1.6666,3141.5,3141.4,0.7711]
[1764889477048,1.5555,3141.5,3141.4,1.67423]
[1764889477248,0.7794,3141.5,3141.4,1.67423]
[1764889477841,1.5555,3141.5,3141.4,1.67423]
[1764889478042,1.5555,3141.5,3141.4,1.67808562]
[1764889478750,2.0102,3141.5,3141.4,0.16298562]
[1764889479556,2.0102,3141.5,3141.4,0.93408562]
[1764889479741,2.0102,3141.5,3141.4,1.67808562]
[1764889480144,0.00475356,3141.8,3141.7,1.5151]
[1764889480344,1.56025356,3141.8,3141.7,1.5151]
[1764889483064,1.5555,3141.7,3141.6,0.93022]
[1764889484362,1.5555,3141.7,3141.6,0.15912]
[1764889484763,1.5555,3141.7,3141.6,1.59332]
[1764889488766,1.5555,3141.7,3141.6,0.15912]
[1764889489366,1.9532,3141.5,3141.4,0.00385562]
[1764889490167,1.508,3141.5,3141.4,1.43805562]
[1764889490671,1.51275356,3141.8,3141.7,1.4342]
[1764889490968,1.51275356,3141.8,3141.7,0.7196]
[1764889494672,1.51275356,3141.8,3141.7,1.4342]
[1764889495068,1.508,3141.6,3141.5,0.87872]
[1764889495274,1.508,3141.6,3141.5,0.15912]
[1764889496476,1.9532,3141.5,3141.4,0.00385562]
[1764889496966,14.5422,3141.5,3141.4,0.00385562]
[1764889497161,1.508,3141.2,3141.1,0.00477183]
[1764889498074,0.7636,3141.2,3141.1,1.44198659]
[1764889498276,1.9532,3141.5,3141.4,0.7196]
[1764889499672,1.508,3141.2,3141.1,1.60113659]
[1764889502278,1.508,3141.2,3141.1,0.00778659]
[1764889502976,42.308,3141.2,3141.1,0.00778659]
[1764889503771,0.2925,3140.5,3140.0,4.67040993]
[1764889503973,0.2925,3140.5,3140.4,0.7772]
[1764889504172,1.8027,3140.5,3140.4,1.5572]
[1764889504374,1.5102,3140.5,3140.4,1.5572]
[1764889504781,1.51305876,3140.5,3140.4,1.55948423]
[1764889506571,1.95515876,3140.5,3140.4,0.77948423]
[1764889506771,1.95515876,3140.5,3140.4,1.55948423]
[1764889508868,1.95515876,3140.5,3140.4,0.00228423]
[1764889510384,0.76995876,3140.5,3140.4,1.55948423]
[1764889511279,1.51305876,3140.5,3140.4,1.55948423]
[1764889511983,0.76995876,3140.5,3140.4,1.55948423]
[1764889512284,0.76995876,3140.5,3140.4,1.71866423]
[1764889512594,1.51305876,3140.5,3140.4,1.71866423]
[1764889514386,0.76995876,3140.5,3140.4,1.71866423]
[1764889514887,1.51305876,3140.5,3140.4,1.71866423]
[1764889515084,0.76995876,3140.5,3140.4,1.71866423]
[1764889516287,1.51305876,3140.5,3140.4,1.71866423]
[1764889516787,0.00285876,3140.5,3140.4,1.71866423]
[1764889517381,0.4452,3141.5,3140.5,0.4457]
[1764889517584,1.9554,3141.5,3141.4,1.5572]
[1764889517779,0.7671,3141.5,3141.4,1.5572]
[1764889518088,0.7671,3141.5,3141.0,0.4457]
[1764889518089,1.51495356,3141.8,3141.7,1.5572]
[1764889518483,1.51733719,3141.8,3141.7,1.5572]
[1764889520791,0.00713719,3141.8,3141.7,1.71632]
[1764889522190,0.4421,3142.5,3142.0,0.4457]
[1764889522393,0.7671,3142.1,3142.0,2.0029]
[1764889522895,1.5102,3142.0,3141.9,0.1591]
[1764889523190,1.95562486,3142.0,3141.9,0.9363]
[1764889523595,1.95562486,3142.0,3141.9,1.7163]
[1764889524791,1.51352486,3142.0,3141.9,1.7163]
[1764889529995,1.95562486,3142.0,3141.9,1.7163]
[1764889530294,1.95562486,3142.0,3141.9,0.9363]
[1764889530595,1.95562486,3142.0,3141.9,0.1591]
[1764889531196,1.5102,3141.7,3141.6,0.00477183]
[1764889533192,1.5102,3140.9,3140.8,1.71636]
[1764889533390,1.5102,3140.9,3140.8,0.93636]
[1764889534089,1.5102,3140.9,3140.8,0.15916]
[1764889535692,1.5102,3140.9,3140.8,1.61326]
[1764889536997,1.5213,3141.3,3141.2,1.4541]
[1764889537290,1.5213,3141.3,3141.2,0.7343]
[1764889537494,1.5213,3141.3,3140.8,0.15916]
[1764889537692,0.7746,3140.9,3140.8,1.61326]
[1764889541801,1.5213,3141.5,3141.4,1.4541]
[1764889542701,0.7746,3141.5,3141.4,1.61323]
[1764889544300,1.4608,3141.6,3141.5,2.08602]
[1764889544505,1.4608,3141.6,3141.5,1.62812]
[1764889544708,1.4608,3141.6,3141.5,0.15912]
[1764889545202,1.4608,3141.6,3141.5,0.86782]
[1764889548310,1.4608,3141.6,3141.5,1.62812]
[1764889550516,0.4687,3143.0,3142.2,1.62809]
[1764889550814,1.46557183,3142.3,3142.2,0.86779]
[1764889551007,1.46557183,3142.3,3142.2,1.62809]
[1764889551614,1.46826202,3142.3,3142.2,1.62809]
[1764889551913,0.00746202,3142.3,3142.2,1.62809]
[1764889552223,0.72306202,3142.3,3142.2,2.96597096]
[1764889552910,1.46826202,3142.3,3142.2,2.96597096]
[1764889555612,1.46826202,3142.3,3142.2,1.62809]
[1764889557222,0.00746202,3142.3,3142.2,2.96597096]
[1764889558115,1.9295,3143.0,3142.9,1.469]
[1764889558528,1.4608,3143.0,3142.9,1.469]
[1764889559124,1.46379953,3143.0,3142.9,1.47312191]
[1764889559424,0.00299953,3143.0,3142.9,1.63217191]
[1764889560033,0.71859953,3143.0,3142.9,1.63217191]
[1764889560222,0.00299953,3143.0,3142.9,1.63217191]
[1764889560631,0.71859953,3143.0,3142.9,1.63217191]
[1764889562620,0.00299953,3143.0,3142.9,1.63217191]
[1764889563427,1.33788096,3143.9,3142.9,1.63217191]
[1764889563428,0.4671,3144.5,3143.9,1.469]
[1764889563636,1.4608,3144.0,3143.9,1.628]
[1764889563833,1.8971,3144.0,3143.9,0.8677]
[1764889564034,1.8971,3144.0,3143.9,0.159]
[1764889564231,1.90039916,3144.0,3143.9,0.8732]
[1764889564635,1.4897,3143.6,3143.5,1.892]
[1764889565434,1.4897,3143.4,3143.3,1.59313]
[1764889567032,1.17689916,3144.0,3143.9,0.7142]
[1764889567229,0.00329916,3144.0,3143.9,1.5931]
[1764889567831,0.74059916,3144.0,3143.9,1.5931]
[1764889568435,0.00329916,3144.0,3143.9,1.5931]
[1764889569136,0.74059916,3144.0,3143.9,1.5931]
[1764889569333,1.92929916,3144.0,3143.9,0.159]
[1764889569537,1.92929916,3144.0,3143.9,0.8732]
[1764889569832,1.92929916,3144.0,3143.9,1.5931]
[1764889570332,0.00329916,3144.0,3143.9,1.5931]
[1764889572437,1.49299916,3144.0,3143.9,0.8732]
[1764889572638,1.92929916,3144.0,3143.9,0.8732]
[1764889572932,1.92929916,3144.0,3143.9,0.159]
[1764889573126,1.92929916,3144.0,3143.5,0.4606]
[1764889573127,1.4897,3143.6,3143.5,1.4341]
[1764889573326,0.7373,3143.6,3143.5,1.8947]
[1764889573530,1.4897,3143.6,3143.5,1.4341]
[1764889574237,1.4897,3143.6,3143.5,1.59312]
[1764889576131,0.43959916,3144.0,3143.5,1.59312]
[1764889576132,0.00329916,3144.0,3143.9,1.5931]
[1764889578031,0.74059916,3144.0,3143.9,1.5931]
[1764889578637,0.00329916,3144.0,3143.9,1.5931]
[1764889579734,1.92929916,3144.0,3143.9,0.159]
[1764889579930,1.4897,3143.6,3143.3,0.15903]
[1764889580135,1.4897,3143.1,3143.0,1.4341]
[1764889580837,1.926,3143.0,3142.9,0.71832191]
[1764889585243,1.926,3143.0,3142.9,0.00412191]
[1764889585445,1.926,3143.0,3142.9,0.71832191]
[1764889594144,1.926,3143.0,3142.9,0.00412191]
[1764889595948,1.926,3143.0,3142.9,2.191e-05]
[1764889596253,1.5085,3142.7,3142.2,0.15909]
[1764889596454,1.9481,3142.0,3141.9,0.25208847]
[1764889596643,1.9481,3142.0,3141.9,0.97848847]
[1764889596843,1.9481,3142.0,3141.9,0.7264]
[1764889597347,1.9481,3142.0,3141.9,0.72864546]
[1764889598051,0.78217183,3142.3,3142.2,1.4586]
[1764889599147,0.00477183,3142.3,3142.2,1.61769]
[1764889601650,0.4363,3143.5,3142.8,1.61766]
[1764889601651,0.7774,3142.9,3142.8,1.61766]
[1764889601851,1.5085,3142.9,3142.8,1.61766]
[1764889603054,1.5085,3142.9,3142.8,0.88546]
[1764889603359,1.5085,3142.9,3142.8,1.66366]
[1764889603554,0.7615,3143.2,3143.1,1.65824]
[1764889605755,1.9803,3143.5,3143.4,1.4992]
[1764889605962,1.98689916,3144.0,3143.5,0.58742]
[1764889606156,1.98689916,3144.0,3143.9,0.721]
[1764889607167,0.7615,3143.6,3143.5,2.08662]
[1764889607556,1.544,3143.6,3143.5,2.08662]
[1764889607763,1.544,3143.6,3143.5,1.65822]
[1764889607966,1.544,3143.6,3143.5,0.88002]
[1764889608461,1.544,3143.6,3143.5,1.65822]
[1764889609762,0.7615,3143.6,3143.5,2.08662]
[1764889610362,1.98689916,3144.0,3143.9,0.721]
[1764889611063,1.98689916,3144.0,3143.5,0.58742]
[1764889611358,1.544,3143.6,3143.5,2.08662]
[1764889612463,0.7615,3143.6,3143.5,2.08662]
[1764889613466,0.44289916,3144.0,3143.5,2.08662]
[1764889613765,1.98689916,3144.0,3143.5,0.58742]
[1764889613957,0.7615,3143.6,3143.5,2.08662]
[1764889617570,1.98689916,3144.0,3143.9,0.721]
[1764889618070,1.98689916,3144.0,3143.5,0.58742]
[1764889618270,0.7615,3143.6,3143.5,2.08662]
[1764889619367,1.544,3143.6,3143.5,2.08662]
[1764889620369,0.7615,3143.6,3143.5,2.08662]
[1764889620969,1.544,3143.6,3143.5,2.08662]
[1764889621471,0.7615,3143.6,3143.5,2.08662]
[1764889622789,1.544,3143.6,3143.5,2.08662]
[1764889622983,1.544,3143.6,3143.5,1.65822]
[1764889623182,0.7615,3143.6,3143.5,2.08662]
[1764889623380,0.00329916,3144.0,3143.9,1.6582]
[1764889623587,1.54729916,3144.0,3143.9,1.6582]
[1764889624090,1.5261,3143.6,3143.5,1.71542]
[1764889624681,1.5261,3143.6,3143.5,0.93312]
[1764889625082,1.5261,3143.6,3143.5,0.15902]
[1764889625690,0.46259916,3144.0,3143.4,0.00477183]
[1764889625691,1.9854,3143.5,3143.4,0.00477183]
[1764889627394,42.7854,3143.5,3143.4,0.00477183]
[1764889628997,1.5261,3143.1,3143.0,0.15905]
[1764889629589,0.7841,3142.6,3142.5,2.0075]
[1764889630293,1.53087183,3142.9,3142.8,1.5564]
[1764889631200,1.5261,3142.6,3142.5,2.16658]
[1764889631498,0.7841,3142.6,3142.5,2.16658]
[1764889631893,1.5261,3142.6,3142.5,1.71548]
[1764889632089,1.5261,3142.6,3142.5,0.93318]
[1764889632285,1.5261,3142.6,3142.5,0.15908]
[1764889633294,1.5261,3142.6,3142.5,0.93318]
[1764889633694,1.5261,3142.6,3142.5,1.71548]
[1764889635799,1.5261,3142.6,3142.5,0.93318]
[1764889636003,1.5261,3142.6,3142.5,0.15908]
[1764889639697,0.00477183,3142.9,3142.7,0.15906]
[1764889639904,0.78887183,3142.9,3142.8,1.5564]
[1764889640092,1.53087183,3142.9,3142.8,0.15906]
[1764889642202,1.5261,3142.3,3142.2,1.72026183]
[1764889642398,1.5261,3142.3,3142.2,0.93796183]
[1764889642607,1.5261,3142.3,3142.2,0.16386183]
[1764889643603,1.5261,3142.3,3142.2,0.00477183]
[1764889643799,1.9854,3142.0,3141.7,0.15912]
[1764889644007,1.9854,3142.0,3141.9,0.77634546]
[1764889645403,1.9854,3142.0,3141.9,0.00224546]
[1764889664224,0.4593,3142.5,3142.4,1.5019]
[1764889664225,0.7552,3142.5,3142.4,1.5019]
[1764889664424,1.518,3142.1,3142.0,2.0936]
[1764889664624,1.518,3142.1,3142.0,1.661]
[1764889665427,1.518,3142.1,3142.0,0.8916]
[1764889665728,1.518,3142.1,3142.0,0.1591]
[1764889666124,1.518,3142.1,3142.0,0.8916]
[1764889668030,1.518,3142.1,3142.0,1.661]
[1764889669636,0.4593,3143.0,3142.4,1.5019]
[1764889669831,1.518,3142.5,3142.4,1.5019]
[1764889670331,1.518,3142.4,3142.3,0.89158]
[1764889670630,0.4693,3142.5,3141.9,1.66325546]
[1764889670631,1.9873,3142.0,3141.9,1.66325546]
[1764889671038,1.518,3142.0,3141.9,1.66325546]
[1764889674038,1.9873,3142.0,3141.9,0.89385546]
[1764889675736,1.9873,3142.0,3141.9,1.66325546]
[1764889676129,1.9873,3142.0,3141.9,0.89385546]
[1764889676324,1.9873,3142.0,3141.9,0.16135546]
[1764889679241,1.9873,3142.0,3141.9,0.00224546]
[1764889679433,1.9873,3142.0,3141.6,0.00477183]
[1764889679434,1.518,3141.7,3141.6,0.00477183]
[1764889680442,1.52078598,3141.7,3141.6,0.00887084]
[1764889681140,0.00278598,3141.7,3141.6,1.51077084]
[1764889682229,0.00278598,3141.7,3141.6,1.66989084]
[1764889683041,1.52078598,3141.7,3141.6,0.16799084]
[1764889683236,1.52078598,3141.7,3141.0,0.4645]
[1764889683237,0.7552,3141.2,3141.1,2.80470993]
[1764889683437,0.7552,3141.2,3141.1,1.66105]
[1764889683438,1.518,3141.2,3141.1,1.66105]
[1764889684039,0.4693,3141.5,3140.7,3.51090993]
[1764889684040,0.7099,3140.8,3140.7,3.51090993]
[1764889684240,1.424,3140.8,3140.7,1.42540538]
[1764889684448,1.8693,3141.0,3140.9,1.4225]
[1764889684636,1.8693,3141.0,3140.9,0.7062]
[1764889685138,1.424,3140.9,3140.8,0.86536]
[1764889685538,1.424,3140.9,3140.8,0.15916]
[1764889685947,1.424,3140.8,3140.7,0.00290538]
[1764889686445,1.424,3140.8,3140.7,0.70910538]
[1764889687644,1.424,3140.8,3140.7,0.00290538]
[1764889688247,1.424,3140.8,3140.7,0.70910538]
[1764889688742,1.424,3140.8,3140.7,1.42540538]
[1764889689242,1.424,3140.8,3140.7,0.70910538]
[1764889690957,1.424,3140.8,3140.7,0.00290538]
[1764889696846,1.8693,3140.5,3140.4,0.16395183]
[1764889697054,1.8693,3140.5,3140.4,1.58645183]
[1764889697645,1.8693,3140.5,3140.4,0.87015183]
[1764889697845,1.424,3140.5,3140.4,1.58877162]
[1764889701254,1.8693,3140.5,3140.4,0.16627162]
[1764889703955,1.8693,3140.5,3140.4,1.58877162]
[1764889704151,1.8693,3141.0,3140.9,1.4225]
[1764889704348,0.00477183,3141.1,3141.0,1.8907]
[1764889704667,1.42877183,3141.1,3141.0,1.8907]
[1764889704849,1.42877183,3141.1,3141.0,1.4225]
[1764889705245,1.42877183,3141.1,3141.0,1.58165]
[1764889705855,1.42877183,3141.1,3141.0,0.86535]
[1764889706057,1.42877183,3141.1,3141.0,1.58165]
[1764889708458,1.42877183,3141.1,3141.0,2.04985]
[1764889708655,0.71467183,3141.1,3141.0,2.04985]
[1764889711659,1.42877183,3141.1,3141.0,1.58165]
[1764889712059,1.42877183,3141.1,3141.0,0.86535]
[1764889712655,1.42877183,3141.1,3141.0,1.58165]
[1764889716663,1.42877183,3141.1,3141.0,0.86535]
[1764889717066,1.42877183,3141.1,3141.0,1.60595]
[1764889717365,1.42877183,3141.1,3141.0,0.86535]
[1764889717560,1.42877183,3141.1,3141.0,0.15915]
[1764889723373,1.42877183,3141.1,3141.0,0.94235]
[1764889723669,0.00477183,3141.1,3141.0,2.09675]
[1764889725773,0.72867183,3141.1,3141.0,2.09675]
[1764889725963,1.47797183,3141.1,3141.0,0.94235]
[1764889726159,1.47797183,3141.1,3141.0,0.15915]
[1764889729168,1.47797183,3141.1,3141.0,2.07135]
[1764889729169,0.00477183,3141.1,3141.0,2.07135]
[1764889729661,0.72867183,3141.1,3141.0,2.07135]
[1764889730570,1.47797183,3141.1,3141.0,2.07135]
[1764889732678,0.72867183,3141.1,3141.0,2.07135]
[1764889735179,1.47797183,3141.1,3141.0,1.62395]
[1764889737176,1.47797183,3141.1,3141.0,0.91695]
[1764889737372,1.47797183,3141.1,3141.0,0.15915]
[1764889741883,1.47797183,3141.1,3141.0,1.62395]
[1764889742086,0.00477183,3141.1,3141.0,2.07135]
[1764889742685,0.72867183,3141.1,3141.0,2.07135]
[1764889742883,1.47797183,3141.1,3141.0,2.07135]
[1764889743074,1.47797183,3141.1,3141.0,1.62395]
[1764889743482,1.47797183,3141.1,3141.0,0.91695]
[1764889747495,0.00477183,3141.1,3141.0,2.08075]
[1764889748295,1.49587183,3141.1,3141.0,0.91695]
[1764889748491,1.49587183,3141.1,3141.0,0.15915]
[1764889748685,1.9443,3140.5,3140.4,3.72158155]
[1764889748888,1.9443,3140.5,3140.4,1.63257162]
[1764889751301,1.9443,3140.5,3140.4,0.16627162]
[1764889751496,1.9443,3140.5,3140.4,0.00709162]
[1764889752897,1.9443,3140.0,3139.9,0.90981]
[1764889753093,1.4911,3139.7,3139.6,4.27100993]
[1764889753397,0.4532,3140.0,3139.4,1.62553]
[1764889753398,1.4911,3139.5,3139.4,1.62553]
[1764889753795,1.49346856,3139.5,3139.4,1.6279188]
[1764889754195,1.94666856,3139.5,3139.4,0.9122188]
[1764889757306,1.94666856,3139.5,3139.4,1.6279188]
[1764889759014,1.94666856,3139.5,3139.4,0.1616188]
[1764889760303,1.94666856,3139.5,3139.4,0.9122188]
[1764889760904,1.94666856,3139.5,3139.4,0.1616188]
[1764889762916,1.94666856,3139.5,3139.4,0.9122188]
[1764889763213,1.94666856,3139.5,3139.4,1.6279188]
[1764889764110,1.94666856,3139.5,3139.4,0.9122188]
[1764889766915,1.94666856,3139.5,3139.4,1.6279188]
[1764889767117,0.76296856,3139.5,3139.4,1.6279188]
[1764889769715,1.94666856,3139.5,3139.4,0.1616188]
[1764889770018,1.4911,3139.2,3139.1,0.00477183]
[1764889771015,1.4911,3138.6,3138.5,0.7506]
[1764889771318,1.4911,3138.6,3138.5,0.75352221]
[1764889774422,1.4911,3138.6,3138.5,0.00292221]
[1764889774919,1.4911,3138.6,3138.5,1.45952221]
[1764889775519,1.4911,3138.6,3138.5,0.73752221]
[1764889777724,1.4911,3138.6,3138.5,0.00292221]
[1764889780118,1.4911,3138.6,3138.5,0.73752221]
[1764889783832,1.4911,3138.6,3138.5,0.00292221]
[1764889784524,1.4578,3138.3,3138.2,0.00477183]
[1764889784828,2.79777627,3138.3,3138.2,0.00477183]
[1764889785732,2.79777627,3138.3,3138.2,0.00769049]
[1764889792239,1.8981,3138.0,3137.9,0.15931]
[1764889793030,1.8981,3138.0,3137.4,1.49930627]
[1764889793230,1.4578,3137.5,3137.4,1.69133101]
[1764889793428,0.7486,3137.5,3137.4,1.69133101]
[1764889795333,1.4578,3137.5,3137.4,1.69133101]
[1764889798237,1.8981,3137.5,3137.4,0.16523101]
[1764889798536,1.8981,3137.5,3137.4,0.94343101]
[1764889798737,1.8981,3137.5,3137.4,0.16523101]
[1764889803034,1.8981,3137.5,3137.4,0.00590101]
[1764889803234,1.4578,3136.9,3136.8,2.43953698]
[1764889803442,0.4403,3137.5,3136.9,1.68546]
[1764889803640,0.7486,3137.1,3137.0,1.9623]
[1764889804033,40.8,3137.4,3137.3,1.65724]
[1764889804240,1.52387951,3137.8,3137.7,1.4979]
[1764889804535,1.52685126,3137.8,3137.7,1.4979]
[1764889805141,1.52685126,3137.8,3137.7,1.65722]
[1764889805442,1.52685126,3137.8,3137.7,0.15932]
[1764889805739,1.52685126,3137.8,3137.3,0.00391652]
[1764889805740,1.5191,3137.4,3137.3,0.00391652]
[1764889808640,1.5191,3137.4,3136.4,2.28017698]
[1764889808939,1.5191,3136.7,3136.6,1.65727]
[1764889809143,1.5191,3136.7,3136.6,0.15937]
[1764889809644,1.5191,3136.7,3136.6,0.16210123]
[1764889809938,1.5191,3136.7,3136.6,0.88850123]
[1764889810143,1.5191,3136.7,3136.6,0.16210123]
[1764889811537,1.5191,3136.7,3136.6,0.00273123]
[1764889817447,1.5191,3136.7,3136.6,0.72913123]
[1764889817647,1.5191,3136.7,3136.6,0.00273123]
[1764889820252,42.3191,3136.7,3136.6,0.00273123]
[1764889821544,1.5191,3136.7,3136.6,0.00273123]
[1764889822548,0.7515,3135.1,3135.0,0.7264]
[1764889822747,1.5191,3135.1,3135.0,1.4979]
[1764889822948,1.9692,3135.0,3134.9,0.88586]
[1764889823149,1.5191,3135.0,3134.9,1.65736]
[1764889823551,1.52272205,3135.0,3134.9,1.66049515]
[1764889823945,1.97282205,3135.0,3134.9,0.88899515]
[1764889824149,1.97282205,3135.0,3134.9,0.00313515]
[1764889824546,1.97282205,3135.0,3134.9,1.50103515]
[1764889824851,1.52272205,3135.0,3134.9,1.50103515]
[1764889825354,1.79369832,3135.0,3133.9,0.88591]
[1764889825551,1.79369832,3135.0,3133.9,1.65741]
[1764889825552,1.9594,3134.0,3133.9,1.65741]
[1764889825855,0.4403,3134.5,3134.4,0.7264]
[1764889825856,1.9594,3134.5,3134.4,0.7264]
[1764889826349,1.9594,3134.5,3134.4,0.00371836]
[1764889827340,42.7594,3134.5,3134.4,0.00371836]
[1764889829247,1.5191,3133.6,3133.5,1.4979]
[1764889829448,1.5191,3133.4,3133.3,1.65744]
[1764889830053,0.7515,3133.4,3133.3,1.65744]
[1764889830348,0.7515,3133.4,3133.3,1.66009026]
[1764889830349,1.5191,3133.4,3133.3,1.66009026]
[1764889831950,0.7515,3133.4,3133.3,1.66009026]
[1764889832853,0.7515,3134.5,3134.4,1.4979]
[1764889833053,0.7515,3134.6,3134.5,1.9678]
[1764889833355,0.75512205,3135.0,3134.9,1.4979]
[1764889833557,0.00362205,3135.0,3134.9,1.4979]
[1764889833950,0.75512205,3135.0,3134.9,1.4979]
[1764889834549,1.53912205,3135.0,3134.9,1.4979]
[1764889836062,0.00478721,3135.3,3135.2,1.448]
[1764889836361,1.9836,3135.7,3135.6,0.7319]
[1764889836657,1.9836,3135.7,3135.6,1.448]
[1764889836957,1.9836,3135.7,3135.6,0.7319]
[1764889837156,1.98654856,3135.7,3135.6,0.73519662]
[1764889837852,1.98654856,3135.7,3135.6,0.00329662]
[1764889838057,0.7796,3134.9,3134.8,1.60747]
[1764889838360,0.4434,3135.5,3134.8,1.60747]
[1764889838950,0.4434,3135.5,3134.9,0.15946]
[1764889839161,2.007,3135.5,3135.4,0.7319]
[1764889839859,2.007,3135.5,3135.0,0.4584]
[1764889840852,0.7796,3135.5,3135.4,1.448]
[1764889841055,1.56654856,3135.7,3135.6,1.448]
[1764889841460,1.56654856,3135.7,3135.6,0.7319]
[1764889841660,1.5636,3135.3,3135.2,0.89134]
[1764889842258,1.5636,3135.3,3135.2,1.60744]
[1764889845962,1.4314,3135.0,3134.9,1.4926778]
[1764889846168,1.8949,3135.0,3134.9,0.0033778]
[1764889846366,1.8949,3135.0,3134.9,0.7438778]
[1764889848868,1.8949,3135.0,3134.9,0.0033778]
[1764889850766,1.8949,3135.0,3134.9,0.0014826]
[1764889854963,1.4314,3134.7,3134.6,0.00478721]
[1764889855267,42.2314,3134.7,3134.6,0.00478721]
[1764889856063,42.2314,3134.7,3134.6,0.00822465]
[1764889857556,1.4314,3133.6,3133.5,1.64883]
[1764889857967,1.4314,3133.6,3133.5,0.15953]
[1764889858476,1.4314,3133.6,3133.5,1.65169717]
[1764889858970,1.4314,3133.6,3133.5,0.90289717]
[1764889859159,0.7073,3133.6,3133.5,1.65169717]
[1764889859359,0.00478721,3133.9,3133.8,1.64882]
[1764889859763,1.43618721,3133.9,3133.8,1.64882]
[1764889859969,1.43618721,3133.9,3133.8,0.90002]
[1764889860772,1.43618721,3133.9,3133.8,1.64882]
[1764889860773,0.00478721,3133.9,3133.8,1.64882]
[1764889860967,0.4635,3134.5,3134.4,1.4893]
[1764889860968,0.7073,3134.5,3134.4,1.4893]
[1764889861163,1.4314,3134.5,3134.4,1.4893]
[1764889861470,0.4635,3135.0,3134.5,0.4499]
[1764889861671,0.4635,3135.0,3134.5,1.9392]
[1764889861969,1.4314,3134.6,3134.5,1.4893]
[1764889863068,1.8949,3135.0,3134.9,0.7405]
[1764889863262,42.2314,3135.0,3134.9,1.4893]
[1764889863462,42.2314,3135.0,3134.9,0.7405]
[1764889863663,42.6949,3135.0,3134.9,0.7405]
[1764889865464,1.4314,3135.0,3134.9,1.4893]
[1764889865773,0.00478721,3135.1,3135.0,1.8765]
[1764889866972,1.55198721,3135.1,3135.0,1.8765]
[1764889867168,1.55198721,3135.1,3135.0,2.03596]
[1764889867766,1.55198721,3135.1,3135.0,1.60476]
[1764889868375,0.00478721,3135.1,3135.0,2.03596]
[1764889868974,0.76918721,3135.1,3135.0,2.03596]
[1764889869875,0.00478721,3135.1,3135.0,2.03596]
[1764889877478,0.4635,3136.0,3135.6,1.4453]
[1764889877672,1.55014856,3135.7,3135.6,1.4453]
[1764889878276,1.55014856,3135.7,3135.6,1.60473]
[1764889878476,0.76734856,3135.7,3135.6,1.60473]
[1764889879185,0.00294856,3135.7,3135.6,1.60473]
[1764889880481,1.55014856,3135.7,3135.6,0.722]
[1764889881080,1.5472,3135.4,3135.3,1.45008721]
[1764889881281,1.5472,3135.4,3135.3,0.72678721]
[1764889882884,1.5472,3135.4,3135.3,1.45008721]
[1764889884390,1.5472,3135.4,3135.3,0.72678721]
[1764889885688,1.5472,3135.4,3135.3,1.45008721]
[1764889886287,1.55014856,3135.7,3135.6,1.4453]
[1764889886483,0.7644,3135.4,3135.3,1.45008721]
[1764889886678,1.5472,3135.4,3135.3,1.45008721]
[1764889887679,1.5472,3135.4,3135.3,0.72678721]
[1764889887886,1.5472,3135.4,3135.3,0.00478721]
[1764889888874,42.3472,3135.4,3135.3,0.00478721]
[1764889890585,42.3472,3135.4,3135.3,1.45008721]
[1764889891193,1.55014856,3135.7,3135.6,1.4453]
[1764889891391,1.5472,3135.4,3135.3,1.60952721]
[1764889896398,1.5472,3135.4,3135.3,0.88622721]
[1764889897893,1.5472,3135.4,3135.3,1.64312721]
[1764889900195,0.00478721,3136.0,3135.9,1.65041]
[1764889900597,41.2463,3137.0,3136.4,1.491]
[1764889900898,1.5005,3136.9,3136.8,1.491]
[1764889901402,0.00364366,3136.9,3136.8,1.49409663]
[1764889901588,14.10028721,3137.2,3137.1,1.491]
[1764889901792,1.5005,3136.9,3136.8,0.16245663]